[Event "Titled Tuesday Blitz August 1 Early 2023"]
[White "Thiel, Thomas"]
[Black "Rama, Tejas"]
[WhiteFideId "4615964"]
[BlackFideId "30907381"]
[WhiteElo "2255"]
[BlackElo "2467"]
[Result "0-1"]
[Round "2"]
[TimeControl "180+1"]
[Date "2023.08.01"]
[WhiteClock "0:00:54"]
[BlackClock "0:00:16"]
[Board "216"]

1. e4 {[%clk 0:03:00]}  c5 {[%clk 0:02:59]} 2. Nc3 {[%clk 0:02:59]}  Nc6 {[%clk 0:02:59]} 3. Bb5 {[%clk 0:02:58]}  Nd4 {[%clk 0:02:59]} 4. Bc4 {[%clk 0:02:58]}  Nf6 {[%clk 0:02:54]} 5. Nge2 {[%clk 0:02:57]}  a6 {[%clk 0:02:29]} 6. d3 {[%clk 0:02:56]}  b5 {[%clk 0:02:18]} 7. Bb3 {[%clk 0:02:55]}  Nxb3 {[%clk 0:02:18]} 8. axb3 {[%clk 0:02:55]}  Bb7 {[%clk 0:02:18]} 9. O-O {[%clk 0:02:54]}  e6 {[%clk 0:02:16]} 10. f4 {[%clk 0:02:54]}  d5 {[%clk 0:02:05]} 11. e5 {[%clk 0:02:53]}  d4 {[%clk 0:02:05]} 12. exf6 {[%clk 0:02:52]}  dxc3 {[%clk 0:02:06]} 13. f5 {[%clk 0:02:51]}  Qd5 {[%clk 0:01:29]} 14. Nf4 {[%clk 0:02:34]}  Qd4+ {[%clk 0:01:29]} 15. Kh1 {[%clk 0:02:31]}  cxb2 {[%clk 0:01:29]} 16. Bxb2 {[%clk 0:02:31]}  Qxb2 {[%clk 0:01:29]} 17. fxe6 {[%clk 0:02:30]}  Qxf6 {[%clk 0:01:09]} 18. exf7+ {[%clk 0:02:27]}  Qxf7 {[%clk 0:01:08]} 19. Ne6 {[%clk 0:02:20]}  Qg6 {[%clk 0:00:55]} 20. Qe2 {[%clk 0:02:19]}  Be7 {[%clk 0:00:51]} 21. Nc7+ {[%clk 0:02:16]}  Kd7 {[%clk 0:00:50]} 22. Nxa8 {[%clk 0:02:15]}  Rxa8 {[%clk 0:00:50]} 23. Rae1 {[%clk 0:02:07]}  Bh4 {[%clk 0:00:49]} 24. Rd1 {[%clk 0:01:40]}  Re8 {[%clk 0:00:48]} 25. Qd2 {[%clk 0:01:39]}  Bg5 {[%clk 0:00:40]} 26. Qf2 {[%clk 0:01:32]}  Bh4 {[%clk 0:00:22]} 27. Qf7+ {[%clk 0:01:31]}  Qxf7 {[%clk 0:00:22]} 28. Rxf7+ {[%clk 0:01:31]}  Re7 {[%clk 0:00:22]} 29. Rxe7+ {[%clk 0:01:30]}  Kxe7 {[%clk 0:00:23]} 30. d4 {[%clk 0:01:29]}  c4 {[%clk 0:00:23]} 31. bxc4 {[%clk 0:01:28]}  bxc4 {[%clk 0:00:24]} 32. Rb1 {[%clk 0:01:22]}  Bd5 {[%clk 0:00:24]} 33. Ra1 {[%clk 0:01:21]}  c3 {[%clk 0:00:16]} 34. Rxa6 {[%clk 0:01:19]}  Bf6 {[%clk 0:00:17]} 35. Ra4 {[%clk 0:01:17]}  Ke6 {[%clk 0:00:17]} 36. Kg1 {[%clk 0:01:11]}  Be4 {[%clk 0:00:16]} 37. Kf2 {[%clk 0:01:04]}  Bxc2 {[%clk 0:00:16]} 38. Ra6+ {[%clk 0:01:04]}  Kd5 {[%clk 0:00:16]} 39. Kf3 {[%clk 0:01:02]}  Be4+ {[%clk 0:00:16]} 40. Ke2 {[%clk 0:01:00]}  c2 {[%clk 0:00:17]} 41. Kd2 {[%clk 0:00:54]}  Bg5+ {[%clk 0:00:16]} 0-1


[Site "https://www.chess.com"]

[Event "Titled Tuesday Blitz August 1 Early 2023"]
[White "Mikhaylova, Irina"]
[Black "Carrasco Miranda, Andres"]
[WhiteFideId "4109040"]
[BlackFideId "3405990"]
[WhiteElo "2249"]
[BlackElo "2461"]
[Result "1/2-1/2"]
[Round "2"]
[TimeControl "180+1"]
[Date "2023.08.01"]
[WhiteClock "0:00:16"]
[BlackClock "0:00:09"]
[Board "220"]

1. Nf3 {[%clk 0:03:00]}  Nf6 {[%clk 0:02:55]} 2. d4 {[%clk 0:03:00]}  g6 {[%clk 0:02:54]} 3. c4 {[%clk 0:03:00]}  Bg7 {[%clk 0:02:53]} 4. Nc3 {[%clk 0:03:01]}  d5 {[%clk 0:02:54]} 5. cxd5 {[%clk 0:03:01]}  Nxd5 {[%clk 0:02:55]} 6. Na4 {[%clk 0:03:01]}  Nb6 {[%clk 0:02:48]} 7. e4 {[%clk 0:03:01]}  O-O {[%clk 0:02:47]} 8. Be3 {[%clk 0:03:01]}  Nc6 {[%clk 0:02:38]} 9. Be2 {[%clk 0:03:01]}  Bg4 {[%clk 0:02:37]} 10. d5 {[%clk 0:03:01]}  Bxf3 {[%clk 0:02:33]} 11. Bxf3 {[%clk 0:03:01]}  Ne5 {[%clk 0:02:33]} 12. Nxb6 {[%clk 0:03:02]}  axb6 {[%clk 0:02:32]} 13. Qc2 {[%clk 0:03:01]}  c6 {[%clk 0:02:27]} 14. Rd1 {[%clk 0:03:00]}  Rxa2 {[%clk 0:02:24]} 15. dxc6 {[%clk 0:02:59]}  Qc7 {[%clk 0:02:17]} 16. Be2 {[%clk 0:02:54]}  bxc6 {[%clk 0:02:07]} 17. Bd4 {[%clk 0:02:39]}  c5 {[%clk 0:02:00]} 18. Bc3 {[%clk 0:02:39]}  Nc6 {[%clk 0:01:47]} 19. Qb3 {[%clk 0:02:37]}  Bxc3+ {[%clk 0:01:43]} 20. bxc3 {[%clk 0:02:36]}  Rfa8 {[%clk 0:01:38]} 21. Bc4 {[%clk 0:02:31]}  Qf4 {[%clk 0:01:34]} 22. O-O {[%clk 0:02:24]}  Ne5 {[%clk 0:01:30]} 23. Bd5 {[%clk 0:02:15]}  R8a3 {[%clk 0:00:42]} 24. Qxb6 {[%clk 0:01:43]}  Rc2 {[%clk 0:00:14]} 25. Qd8+ {[%clk 0:01:21]}  Kg7 {[%clk 0:00:13]} 26. Qxe7 {[%clk 0:01:21]}  Raxc3 {[%clk 0:00:13]} 27. g3 {[%clk 0:00:38]}  Qf6 {[%clk 0:00:10]} 28. Qxf6+ {[%clk 0:00:25]}  Kxf6 {[%clk 0:00:11]} 29. h3 {[%clk 0:00:22]}  Nf3+ {[%clk 0:00:10]} 30. Kg2 {[%clk 0:00:21]}  Nd4 {[%clk 0:00:10]} 31. Rfe1 {[%clk 0:00:18]}  h5 {[%clk 0:00:10]} 32. h4 {[%clk 0:00:16]}  g5 {[%clk 0:00:09]} 33. hxg5+ {[%clk 0:00:16]}  Kxg5 {[%clk 0:00:10]} 34. Kh3 {[%clk 0:00:16]}  Rxf2 {[%clk 0:00:09]} 35. Rf1 {[%clk 0:00:16]}  Rcc2 {[%clk 0:00:09]} 36. Rxf2 {[%clk 0:00:16]}  Rxf2 {[%clk 0:00:10]} 37. Bxf7 {[%clk 0:00:14]}  Nf3 {[%clk 0:00:10]} 38. Rd5+ {[%clk 0:00:14]}  Kf6 {[%clk 0:00:09]} 39. Rf5+ {[%clk 0:00:15]}  Kg7 {[%clk 0:00:09]} 40. Bxh5 {[%clk 0:00:15]}  Rh2+ {[%clk 0:00:09]} 41. Kg4 {[%clk 0:00:16]}  Nd2 {[%clk 0:00:09]} 42. Rg5+ {[%clk 0:00:16]}  Kf6 {[%clk 0:00:09]} 43. Rf5+ {[%clk 0:00:17]}  Ke6 {[%clk 0:00:09]} 44. Bf7+ {[%clk 0:00:15]}  Kd6 {[%clk 0:00:10]} 45. Bd5 {[%clk 0:00:16]}  Re2 {[%clk 0:00:07]} 46. Kg5 {[%clk 0:00:14]}  Nxe4+ {[%clk 0:00:07]} 47. Bxe4 {[%clk 0:00:15]}  Rxe4 {[%clk 0:00:08]} 48. g4 {[%clk 0:00:15]}  c4 {[%clk 0:00:08]} 49. Rf6+ {[%clk 0:00:15]}  Kd5 {[%clk 0:00:08]} 50. Rf8 {[%clk 0:00:16]}  c3 {[%clk 0:00:08]} 51. Rd8+ {[%clk 0:00:15]}  Kc4 {[%clk 0:00:08]} 52. Rc8+ {[%clk 0:00:15]}  Kd3 {[%clk 0:00:09]} 53. Kf6 {[%clk 0:00:16]}  c2 {[%clk 0:00:09]} 54. Rxc2 {[%clk 0:00:15]}  Kxc2 {[%clk 0:00:09]} 55. g5 {[%clk 0:00:16]}  Kd3 {[%clk 0:00:08]} 56. g6 {[%clk 0:00:16]}  Rf4+ {[%clk 0:00:08]} 57. Ke7 {[%clk 0:00:16]}  Rg4 {[%clk 0:00:08]} 58. Kf7 {[%clk 0:00:16]}  Ke4 {[%clk 0:00:08]} 59. g7 {[%clk 0:00:16]}  Ke5 {[%clk 0:00:08]} 60. g8=Q {[%clk 0:00:16]}  Rxg8 {[%clk 0:00:09]} 61. Kxg8 {[%clk 0:00:16]} 1/2-1/2


[Site "https://www.chess.com"]

[Event "Titled Tuesday Blitz August 1 Early 2023"]
[White "Romero Pallares, Daniel"]
[Black "Tuleyeva-Aketayeva, Dana"]
[WhiteFideId "32025637"]
[BlackFideId "13701932"]
[WhiteElo "2458"]
[BlackElo "2242"]
[Result "1-0"]
[Round "2"]
[TimeControl "180+1"]
[Date "2023.08.01"]
[WhiteClock "0:00:15"]
[BlackClock "0:00:00"]
[Board "222"]

1. e4 {[%clk 0:03:00]}  c5 {[%clk 0:03:00]} 2. Nf3 {[%clk 0:02:58]}  Nc6 {[%clk 0:03:00]} 3. Bb5 {[%clk 0:02:55]}  g6 {[%clk 0:03:00]} 4. Bxc6 {[%clk 0:02:55]}  bxc6 {[%clk 0:03:01]} 5. O-O {[%clk 0:02:51]}  Bg7 {[%clk 0:03:01]} 6. Re1 {[%clk 0:02:50]}  Nh6 {[%clk 0:02:56]} 7. e5 {[%clk 0:02:44]}  O-O {[%clk 0:02:51]} 8. d3 {[%clk 0:02:43]}  Nf5 {[%clk 0:02:48]} 9. Nc3 {[%clk 0:02:37]}  Ba6 {[%clk 0:02:25]} 10. b3 {[%clk 0:02:12]}  Nd4 {[%clk 0:02:21]} 11. Na4 {[%clk 0:02:00]}  d6 {[%clk 0:02:11]} 12. Nxd4 {[%clk 0:01:49]}  cxd4 {[%clk 0:02:10]} 13. Bf4 {[%clk 0:01:44]}  dxe5 {[%clk 0:01:45]} 14. Bxe5 {[%clk 0:01:45]}  f6 {[%clk 0:01:46]} 15. Bg3 {[%clk 0:01:31]}  e5 {[%clk 0:01:44]} 16. Qf3 {[%clk 0:01:24]}  Qd5 {[%clk 0:01:33]} 17. Qe2 {[%clk 0:01:17]}  c5 {[%clk 0:01:25]} 18. Qd2 {[%clk 0:01:15]}  Bb7 {[%clk 0:01:22]} 19. f3 {[%clk 0:01:14]}  Rfe8 {[%clk 0:01:15]} 20. Qa5 {[%clk 0:01:11]}  Bf8 {[%clk 0:01:06]} 21. Re2 {[%clk 0:01:11]}  Bc6 {[%clk 0:00:57]} 22. Rae1 {[%clk 0:01:03]}  Bxa4 {[%clk 0:00:55]} 23. Qxa4 {[%clk 0:01:04]}  Bh6 {[%clk 0:00:52]} 24. f4 {[%clk 0:01:03]}  Kg7 {[%clk 0:00:36]} 25. Kf1 {[%clk 0:00:45]}  Rf8 {[%clk 0:00:19]} 26. Kg1 {[%clk 0:00:33]}  e4 {[%clk 0:00:13]} 27. Rxe4 {[%clk 0:00:32]}  Rf7 {[%clk 0:00:08]} 28. h3 {[%clk 0:00:31]}  Qh5 {[%clk 0:00:03]} 29. Qc6 {[%clk 0:00:27]}  Raf8 {[%clk 0:00:02]} 30. Kh2 {[%clk 0:00:23]}  Qf5 {[%clk 0:00:02]} 31. Re7 {[%clk 0:00:23]}  g5 {[%clk 0:00:03]} 32. fxg5 {[%clk 0:00:23]}  fxg5 {[%clk 0:00:03]} 33. Be5+ {[%clk 0:00:23]}  Kg8 {[%clk 0:00:02]} 34. Bg3 {[%clk 0:00:20]}  g4 {[%clk 0:00:02]} 35. Qxh6 {[%clk 0:00:20]}  gxh3 {[%clk 0:00:02]} 36. Qxh3 {[%clk 0:00:17]}  Qg6 {[%clk 0:00:02]} 37. R7e4 {[%clk 0:00:15]}  Rf3 {[%clk 0:00:00]} 38. Rg4 {[%clk 0:00:15]} 1-0


[Site "https://www.chess.com"]

[Event "Titled Tuesday Blitz August 1 Early 2023"]
[White "Balla, Tamas-Kristof"]
[Black "Atanasov, Radislav"]
[WhiteFideId "1208497"]
[BlackFideId "2901471"]
[WhiteElo "2455"]
[BlackElo "2235"]
[Result "0-1"]
[Round "2"]
[TimeControl "180+1"]
[Date "2023.08.01"]
[WhiteClock "0:00:36"]
[BlackClock "0:01:24"]
[Board "225"]

1. e4 {[%clk 0:03:00]}  e5 {[%clk 0:02:58]} 2. Nf3 {[%clk 0:03:00]}  Nc6 {[%clk 0:02:53]} 3. Bc4 {[%clk 0:03:00]}  Nf6 {[%clk 0:02:51]} 4. Ng5 {[%clk 0:02:57]}  Bc5 {[%clk 0:02:47]} 5. Nxf7 {[%clk 0:02:45]}  Bxf2+ {[%clk 0:02:44]} 6. Kf1 {[%clk 0:02:46]}  Qe7 {[%clk 0:02:35]} 7. Nxh8 {[%clk 0:02:45]}  d5 {[%clk 0:02:30]} 8. exd5 {[%clk 0:02:46]}  Nd4 {[%clk 0:02:22]} 9. d6 {[%clk 0:02:46]}  Qxd6 {[%clk 0:02:17]} 10. d3 {[%clk 0:02:38]}  Bg4 {[%clk 0:02:09]} 11. Qd2 {[%clk 0:02:37]}  Be2+ {[%clk 0:02:01]} 12. Kxf2 {[%clk 0:02:27]}  Ng4+ {[%clk 0:01:59]} 13. Ke1 {[%clk 0:01:45]}  Qf6 {[%clk 0:01:48]} 14. Qg5 {[%clk 0:00:59]}  Qf2+ {[%clk 0:01:30]} 15. Kd2 {[%clk 0:00:59]}  Bxd3+ {[%clk 0:01:29]} 16. Kxd3 {[%clk 0:00:36]}  Qxc2# {[%clk 0:01:24]} 0-1


[Site "https://www.chess.com"]

[Event "Titled Tuesday Blitz August 1 Early 2023"]
[White "Mishra, Manoj"]
[Black "Mmukka"]
[WhiteFideId "5006007"]
[WhiteElo "2234"]
[BlackElo "2454"]
[Result "0-1"]
[Round "2"]
[TimeControl "180+1"]
[Date "2023.08.01"]
[WhiteClock "0:00:18"]
[BlackClock "0:00:29"]
[Board "226"]

1. d4 {[%clk 0:03:00]}  d5 {[%clk 0:02:57]} 2. c4 {[%clk 0:02:56]}  dxc4 {[%clk 0:02:57]} 3. Nf3 {[%clk 0:02:55]}  Nf6 {[%clk 0:02:56]} 4. g3 {[%clk 0:02:55]}  a6 {[%clk 0:02:53]} 5. Bg2 {[%clk 0:02:55]}  b5 {[%clk 0:02:52]} 6. Ne5 {[%clk 0:02:52]}  c6 {[%clk 0:02:52]} 7. Nxc6 {[%clk 0:02:49]}  Qb6 {[%clk 0:02:51]} 8. Nxb8 {[%clk 0:02:30]}  Rxb8 {[%clk 0:02:49]} 9. Nc3 {[%clk 0:02:22]}  e6 {[%clk 0:02:42]} 10. O-O {[%clk 0:02:17]}  Bb7 {[%clk 0:02:32]} 11. e4 {[%clk 0:02:16]}  Be7 {[%clk 0:02:27]} 12. Bf4 {[%clk 0:02:10]}  Rd8 {[%clk 0:02:25]} 13. Be3 {[%clk 0:02:08]}  Qc7 {[%clk 0:02:11]} 14. Bf4 {[%clk 0:01:48]}  Qd7 {[%clk 0:01:34]} 15. Be5 {[%clk 0:01:02]}  O-O {[%clk 0:01:31]} 16. Qe2 {[%clk 0:00:57]}  b4 {[%clk 0:01:18]} 17. Nd1 {[%clk 0:00:52]}  Qb5 {[%clk 0:01:18]} 18. a4 {[%clk 0:00:49]}  bxa3 {[%clk 0:01:16]} 19. bxa3 {[%clk 0:00:48]}  Rc8 {[%clk 0:00:54]} 20. a4 {[%clk 0:00:46]}  Qa5 {[%clk 0:00:52]} 21. Nb2 {[%clk 0:00:33]}  c3 {[%clk 0:00:47]} 22. Nc4 {[%clk 0:00:32]}  Qb4 {[%clk 0:00:43]} 23. Rab1 {[%clk 0:00:32]}  Qxc4 {[%clk 0:00:43]} 24. Qxc4 {[%clk 0:00:32]}  Rxc4 {[%clk 0:00:44]} 25. Rxb7 {[%clk 0:00:32]}  Bb4 {[%clk 0:00:37]} 26. Bxf6 {[%clk 0:00:28]}  gxf6 {[%clk 0:00:37]} 27. Rb1 {[%clk 0:00:28]}  a5 {[%clk 0:00:37]} 28. Bf1 {[%clk 0:00:26]}  Rxd4 {[%clk 0:00:37]} 29. f3 {[%clk 0:00:24]}  Rc8 {[%clk 0:00:33]} 30. Rc1 {[%clk 0:00:23]}  c2 {[%clk 0:00:32]} 31. Be2 {[%clk 0:00:23]}  Ba3 {[%clk 0:00:29]} 32. Rxc2 {[%clk 0:00:20]}  Rxc2 {[%clk 0:00:29]} 33. Rb8+ {[%clk 0:00:18]}  Kg7 {[%clk 0:00:29]} 0-1


[Site "https://www.chess.com"]

[Event "Titled Tuesday Blitz August 1 Early 2023"]
[White "alfianasybullina"]
[Black "favesaul"]
[WhiteElo "2228"]
[BlackElo "2452"]
[Result "0-1"]
[Round "2"]
[TimeControl "180+1"]
[Date "2023.08.01"]
[WhiteClock "0:00:51"]
[BlackClock "0:00:56"]
[Board "228"]

1. d4 {[%clk 0:03:00]}  Nf6 {[%clk 0:02:56]} 2. Nf3 {[%clk 0:03:01]}  g6 {[%clk 0:02:49]} 3. Bg5 {[%clk 0:03:00]}  Bg7 {[%clk 0:02:49]} 4. Nbd2 {[%clk 0:02:58]}  d5 {[%clk 0:02:48]} 5. e3 {[%clk 0:02:58]}  O-O {[%clk 0:02:47]} 6. c4 {[%clk 0:02:58]}  c5 {[%clk 0:02:22]} 7. Qb3 {[%clk 0:02:34]}  cxd4 {[%clk 0:02:20]} 8. exd4 {[%clk 0:02:32]}  Nc6 {[%clk 0:02:20]} 9. Bxf6 {[%clk 0:02:27]}  Bxf6 {[%clk 0:02:19]} 10. cxd5 {[%clk 0:02:27]}  Nxd4 {[%clk 0:02:19]} 11. Nxd4 {[%clk 0:02:27]}  Bxd4 {[%clk 0:02:20]} 12. Be2 {[%clk 0:02:24]}  Qa5 {[%clk 0:02:16]} 13. Rd1 {[%clk 0:02:15]}  e6 {[%clk 0:02:10]} 14. O-O {[%clk 0:01:54]}  exd5 {[%clk 0:02:09]} 15. Nf3 {[%clk 0:01:50]}  Bg7 {[%clk 0:02:08]} 16. Rxd5 {[%clk 0:01:50]}  Qc7 {[%clk 0:02:05]} 17. Nd4 {[%clk 0:01:36]}  b6 {[%clk 0:01:47]} 18. Nb5 {[%clk 0:01:33]}  Qe7 {[%clk 0:01:45]} 19. Bf3 {[%clk 0:01:21]}  Be6 {[%clk 0:01:44]} 20. Qe3 {[%clk 0:01:21]}  Rae8 {[%clk 0:01:24]} 21. Re1 {[%clk 0:01:10]}  Qb4 {[%clk 0:01:14]} 22. Nc7 {[%clk 0:01:01]}  Bxd5 {[%clk 0:01:09]} 23. Nxe8 {[%clk 0:00:59]}  Bxf3 {[%clk 0:01:09]} 24. Nxg7 {[%clk 0:00:57]}  Bd5 {[%clk 0:01:05]} 25. Qe5 {[%clk 0:00:54]}  Qd2 {[%clk 0:00:58]} 26. f4 {[%clk 0:00:51]}  Qxg2# {[%clk 0:00:56]} 0-1


[Site "https://www.chess.com"]

[Event "Titled Tuesday Blitz August 1 Early 2023"]
[White "hsd2016"]
[Black "Ventura Bolet, Maxim"]
[BlackFideId "22238824"]
[WhiteElo "2227"]
[BlackElo "2452"]
[Result "1/2-1/2"]
[Round "2"]
[TimeControl "180+1"]
[Date "2023.08.01"]
[WhiteClock "0:00:21"]
[BlackClock "0:00:21"]
[Board "229"]

1. c4 {[%clk 0:03:00]}  e5 {[%clk 0:02:54]} 2. g3 {[%clk 0:02:59]}  Nc6 {[%clk 0:02:52]} 3. Bg2 {[%clk 0:02:59]}  f5 {[%clk 0:02:52]} 4. Nc3 {[%clk 0:02:58]}  Nf6 {[%clk 0:02:41]} 5. d3 {[%clk 0:02:48]}  Bb4 {[%clk 0:02:41]} 6. e3 {[%clk 0:02:45]}  Bxc3+ {[%clk 0:02:35]} 7. bxc3 {[%clk 0:02:43]}  O-O {[%clk 0:02:35]} 8. Ne2 {[%clk 0:02:42]}  d6 {[%clk 0:02:35]} 9. O-O {[%clk 0:02:35]}  Qe8 {[%clk 0:02:35]} 10. h3 {[%clk 0:02:34]}  Qh5 {[%clk 0:02:32]} 11. f4 {[%clk 0:02:28]}  e4 {[%clk 0:02:24]} 12. Nd4 {[%clk 0:02:10]}  Qxd1 {[%clk 0:02:15]} 13. Rxd1 {[%clk 0:02:11]}  Na5 {[%clk 0:02:04]} 14. Nb5 {[%clk 0:02:07]}  Rf7 {[%clk 0:01:55]} 15. dxe4 {[%clk 0:02:04]}  fxe4 {[%clk 0:01:54]} 16. c5 {[%clk 0:02:05]}  a6 {[%clk 0:01:47]} 17. Nd4 {[%clk 0:01:14]}  dxc5 {[%clk 0:01:43]} 18. Nb3 {[%clk 0:01:14]}  Nxb3 {[%clk 0:01:37]} 19. axb3 {[%clk 0:01:15]}  Be6 {[%clk 0:01:37]} 20. c4 {[%clk 0:01:14]}  h5 {[%clk 0:01:33]} 21. Ba3 {[%clk 0:01:09]}  b6 {[%clk 0:01:32]} 22. Bb2 {[%clk 0:01:03]}  a5 {[%clk 0:01:32]} 23. Bxf6 {[%clk 0:01:03]}  gxf6 {[%clk 0:01:26]} 24. Bxe4 {[%clk 0:01:03]}  Re8 {[%clk 0:01:22]} 25. f5 {[%clk 0:01:01]}  Bxc4 {[%clk 0:01:06]} 26. Bc6 {[%clk 0:00:57]}  Rxe3 {[%clk 0:01:05]} 27. bxc4 {[%clk 0:00:57]}  Rxg3+ {[%clk 0:01:04]} 28. Kh2 {[%clk 0:00:56]}  Rfg7 {[%clk 0:01:04]} 29. Rg1 {[%clk 0:00:55]}  Rxg1 {[%clk 0:01:00]} 30. Rxg1 {[%clk 0:00:56]}  Rxg1 {[%clk 0:01:00]} 31. Kxg1 {[%clk 0:00:57]}  Kf8 {[%clk 0:01:00]} 32. Kf2 {[%clk 0:00:57]}  Ke7 {[%clk 0:01:01]} 33. Ke3 {[%clk 0:00:57]}  Kd6 {[%clk 0:01:01]} 34. Ba4 {[%clk 0:00:56]}  Ke5 {[%clk 0:01:01]} 35. Bd7 {[%clk 0:00:55]}  c6 {[%clk 0:00:52]} 36. h4 {[%clk 0:00:53]}  b5 {[%clk 0:00:51]} 37. cxb5 {[%clk 0:00:52]}  cxb5 {[%clk 0:00:51]} 38. Bxb5 {[%clk 0:00:52]}  Kxf5 {[%clk 0:00:51]} 39. Kf3 {[%clk 0:00:51]}  Ke5 {[%clk 0:00:49]} 40. Ke3 {[%clk 0:00:40]}  f5 {[%clk 0:00:47]} 41. Be8 {[%clk 0:00:27]}  f4+ {[%clk 0:00:42]} 42. Kf3 {[%clk 0:00:26]}  c4 {[%clk 0:00:42]} 43. Ba4 {[%clk 0:00:24]}  c3 {[%clk 0:00:36]} 44. Bc2 {[%clk 0:00:23]}  Kf6 {[%clk 0:00:17]} 45. Kxf4 {[%clk 0:00:22]}  a4 {[%clk 0:00:17]} 46. Bxa4 {[%clk 0:00:21]}  Kg7 {[%clk 0:00:16]} 47. Kg5 {[%clk 0:00:21]}  Kh8 {[%clk 0:00:16]} 48. Kxh5 {[%clk 0:00:21]}  c2 {[%clk 0:00:16]} 49. Bxc2 {[%clk 0:00:21]}  Kg8 {[%clk 0:00:17]} 50. Kg6 {[%clk 0:00:21]}  Kh8 {[%clk 0:00:17]} 51. h5 {[%clk 0:00:21]}  Kg8 {[%clk 0:00:18]} 52. h6 {[%clk 0:00:22]}  Kh8 {[%clk 0:00:19]} 53. Kf6 {[%clk 0:00:20]}  Kg8 {[%clk 0:00:19]} 54. Ke7 {[%clk 0:00:20]}  Kh8 {[%clk 0:00:20]} 55. Bg6 {[%clk 0:00:20]}  Kg8 {[%clk 0:00:20]} 56. Kf6 {[%clk 0:00:21]}  Kh8 {[%clk 0:00:21]} 57. Kf7 {[%clk 0:00:21]} 1/2-1/2


[Site "https://www.chess.com"]

[Event "Titled Tuesday Blitz August 1 Early 2023"]
[White "Bychkov, Vladimir"]
[Black "Liu, Leonardo"]
[WhiteFideId "24151513"]
[BlackFideId "30965780"]
[WhiteElo "2451"]
[BlackElo "2219"]
[Result "1-0"]
[Round "2"]
[TimeControl "180+1"]
[Date "2023.08.01"]
[WhiteClock "0:01:31"]
[BlackClock "0:01:24"]
[Board "230"]

1. d4 {[%clk 0:03:00]}  Nf6 {[%clk 0:02:56]} 2. c4 {[%clk 0:03:00]}  g6 {[%clk 0:02:57]} 3. Nc3 {[%clk 0:03:00]}  Bg7 {[%clk 0:02:58]} 4. e4 {[%clk 0:03:00]}  d6 {[%clk 0:02:58]} 5. Nf3 {[%clk 0:03:01]}  O-O {[%clk 0:02:59]} 6. Be2 {[%clk 0:03:01]}  e5 {[%clk 0:02:59]} 7. O-O {[%clk 0:03:02]}  Nc6 {[%clk 0:03:00]} 8. d5 {[%clk 0:03:03]}  Ne7 {[%clk 0:03:01]} 9. b4 {[%clk 0:03:03]}  Nd7 {[%clk 0:03:01]} 10. Ba3 {[%clk 0:03:02]}  f5 {[%clk 0:03:01]} 11. c5 {[%clk 0:03:02]}  Nf6 {[%clk 0:02:50]} 12. b5 {[%clk 0:02:59]}  fxe4 {[%clk 0:02:47]} 13. Ng5 {[%clk 0:02:55]}  h6 {[%clk 0:02:44]} 14. Ngxe4 {[%clk 0:02:42]}  Nxe4 {[%clk 0:02:35]} 15. Nxe4 {[%clk 0:02:43]}  dxc5 {[%clk 0:02:30]} 16. Bxc5 {[%clk 0:02:34]}  Bf5 {[%clk 0:02:31]} 17. d6 {[%clk 0:02:30]}  cxd6 {[%clk 0:02:27]} 18. Nxd6 {[%clk 0:02:29]}  Kh7 {[%clk 0:02:26]} 19. Nxb7 {[%clk 0:02:20]}  Qc7 {[%clk 0:02:22]} 20. Qd6 {[%clk 0:02:19]}  Rac8 {[%clk 0:01:52]} 21. Qxe7 {[%clk 0:02:14]}  Qxe7 {[%clk 0:01:52]} 22. Bxe7 {[%clk 0:02:14]}  Rf7 {[%clk 0:01:52]} 23. Nd6 {[%clk 0:02:13]}  Rxe7 {[%clk 0:01:50]} 24. Nxc8 {[%clk 0:02:13]}  Bxc8 {[%clk 0:01:46]} 25. Rac1 {[%clk 0:02:13]}  Be6 {[%clk 0:01:45]} 26. a4 {[%clk 0:02:10]}  e4 {[%clk 0:01:44]} 27. a5 {[%clk 0:02:08]}  Bf5 {[%clk 0:01:38]} 28. b6 {[%clk 0:02:05]}  axb6 {[%clk 0:01:39]} 29. axb6 {[%clk 0:02:06]}  Rb7 {[%clk 0:01:39]} 30. Rc6 {[%clk 0:02:06]}  Bd4 {[%clk 0:01:30]} 31. Rc7+ {[%clk 0:01:41]}  Rxc7 {[%clk 0:01:24]} 32. bxc7 {[%clk 0:01:42]}  e3 {[%clk 0:01:24]} 33. fxe3 {[%clk 0:01:33]}  Bxe3+ {[%clk 0:01:24]} 34. Kh1 {[%clk 0:01:31]}  Bc8 {[%clk 0:01:24]} 1-0


[Site "https://www.chess.com"]